[Event "MČR družstev mladších žáků 2024"]
[Site "Harrachov, Czech Republic"]
[Date "2024.06.15"]
[Round "7.21"]
[White "Hujova Tess"]
[Black "Filip Damian"]
[Result "1-0"]
[TimeControl "25+10"]
[WhiteFideId "23744936"]
[BlackFideId "23755415"]
[WhiteElo "1311"]
[BlackElo "1196"]

1. b4 {[%clk 00:25:18]} {[%emt 00:00:01]} e5 {[%clk 00:25:15]} {[%emt
00:00:06]} 2. Bb2 {[%clk 00:25:27]} {[%emt 00:00:01]} d6 {[%clk 00:24:47]}
{[%emt 00:00:38]} 3. e3 {[%clk 00:25:29]} {[%emt 00:00:07]} Nf6 {[%clk
00:24:40]} {[%emt 00:00:17]} 4. d3 {[%clk 00:25:36]} {[%emt 00:00:03]} Be6
{[%clk 00:23:59]} {[%emt 00:00:51]} 5. Nd2 {[%clk 00:25:33]} {[%emt 00:00:13]}
Nbd7 {[%clk 00:23:40]} {[%emt 00:00:29]} 6. Ngf3 {[%clk 00:25:34]} {[%emt
00:00:10]} Be7 {[%clk 00:22:59]} {[%emt 00:00:51]} 7. Be2 {[%clk 00:25:14]}
{[%emt 00:00:30]} O-O {[%clk 00:22:57]} {[%emt 00:00:13]} 8. O-O {[%clk
00:24:59]} {[%emt 00:00:23]} Re8 {[%clk 00:22:30]} {[%emt 00:00:38]} 9. c4
{[%clk 00:23:58]} {[%emt 00:01:14]} Bf8 {[%clk 00:21:25]} {[%emt 00:01:12]} 10.
Qc2 {[%clk 00:23:30]} {[%emt 00:00:38]} Bf5 {[%clk 00:19:22]} {[%emt 00:02:01]}
11. Nh4 {[%clk 00:21:29]} {[%emt 00:02:43]} Bg6 {[%clk 00:17:49]} {[%emt
00:01:43]} 12. Nxg6 {[%clk 00:21:34]} {[%emt 00:00:05]} fxg6 {[%clk 00:17:37]}
{[%emt 00:00:21]} 13. Bf3 {[%clk 00:21:13]} {[%emt 00:00:31]} Rb8 {[%clk
00:16:51]} {[%emt 00:00:57]} 14. Nb3 {[%clk 00:19:57]} {[%emt 00:01:25]} c6
{[%clk 00:15:44]} {[%emt 00:01:17]} 15. a3 {[%clk 00:19:04]} {[%emt 00:01:03]}
Rc8 {[%clk 00:14:29]} {[%emt 00:01:26]} 16. Na5 {[%clk 00:18:05]} {[%emt
00:01:09]} Rc7 {[%clk 00:12:26]} {[%emt 00:02:13]} 17. Rac1 {[%clk 00:16:55]}
{[%emt 00:01:19]} Nb8 {[%clk 00:10:51]} {[%emt 00:01:45]} 18. Rfd1 {[%clk
00:15:52]} {[%emt 00:01:14]} b6 {[%clk 00:10:25]} {[%emt 00:00:36]} 19. Nb3
{[%clk 00:15:51]} {[%emt 00:00:11]} Rc8 {[%clk 00:09:20]} {[%emt 00:01:15]} 20.
a4 {[%clk 00:14:22]} {[%emt 00:01:39]} d5 {[%clk 00:07:00]} {[%emt 00:02:30]}
21. c5 {[%clk 00:13:46]} {[%emt 00:00:46]} bxc5 {[%clk 00:06:45]} {[%emt
00:00:25]} 22. Nxc5 {[%clk 00:13:28]} {[%emt 00:00:28]} Bxc5 {[%clk 00:06:39]}
{[%emt 00:00:16]} 23. Qxc5 {[%clk 00:12:49]} {[%emt 00:00:49]} Qe7 {[%clk
00:05:40]} {[%emt 00:01:09]} 24. Qxe7 {[%clk 00:09:48]} {[%emt 00:03:11]} Rxe7
{[%clk 00:05:48]} {[%emt 00:00:02]} 25. Ba3 {[%clk 00:09:19]} {[%emt 00:00:39]}
Ree8 {[%clk 00:05:30]} {[%emt 00:00:28]} 26. Rc2 {[%clk 00:08:59]} {[%emt
00:00:27]} h5 {[%clk 00:04:20]} {[%emt 00:01:22]} 27. Rdc1 {[%clk 00:08:51]}
{[%emt 00:00:18]} Re6 {[%clk 00:03:58]} {[%emt 00:00:32]} 28. b5 {[%clk
00:08:24]} {[%emt 00:00:37]} Kf7 {[%clk 00:03:16]} {[%emt 00:00:53]} 29. h3
{[%clk 00:06:33]} {[%emt 00:02:00]} e4 {[%clk 00:02:18]} {[%emt 00:01:08]} 30.
dxe4 {[%clk 00:06:29]} {[%emt 00:00:14]} dxe4 {[%clk 00:02:22]} {[%emt
00:00:06]} 31. Be2 {[%clk 00:06:33]} {[%emt 00:00:06]} Ke8 {[%clk 00:01:05]}
{[%emt 00:01:28]} 32. bxc6 {[%clk 00:05:07]} {[%emt 00:01:36]} Rexc6 {[%clk
00:00:52]} {[%emt 00:00:23]} 33. Bb5 {[%clk 00:05:11]} {[%emt 00:00:05]} Kd7
{[%clk 00:00:46]} {[%emt 00:00:16]} 34. Bxc6+ {[%clk 00:05:11]} {[%emt
00:00:11]} Rxc6 {[%clk 00:00:47]} {[%emt 00:00:09]} 35. Rd1+ {[%clk 00:04:30]}
{[%emt 00:00:50]} Kc7 {[%clk 00:00:44]} {[%emt 00:00:14]} 36. Bd6+ {[%clk
00:03:49]} {[%emt 00:00:51]} 1-0



[ePGN "0.1;DGT LiveChess/2.2.6"]

[Event "MČR družstev mladších žáků 2024"]
[Site "Harrachov, Czech Republic"]
[Date "2024.06.15"]
[Round "7.22"]
[White "Pokorny Petr"]
[Black "Jenikova Sabina"]
[Result "1-0"]
[TimeControl "25+10"]
[BlackFideId "23759860"]
[WhiteElo "1040"]
[BlackElo "1114"]

1. d4 {[%clk 00:25:17]} {[%emt 00:00:03]} e6 {[%clk 00:25:26]} {[%emt
00:00:04]} 2. c4 {[%clk 00:25:14]} {[%emt 00:00:12]} b6 {[%clk 00:25:33]}
{[%emt 00:00:04]} 3. Nc3 {[%clk 00:25:17]} {[%emt 00:00:06]} Bb7 {[%clk
00:25:41]} {[%emt 00:00:02]} 4. Nf3 {[%clk 00:25:12]} {[%emt 00:00:15]} Bb4
{[%clk 00:25:44]} {[%emt 00:00:07]} 5. Bd2 {[%clk 00:24:59]} {[%emt 00:00:23]}
f5 {[%clk 00:25:39]} {[%emt 00:00:16]} 6. a3 {[%clk 00:24:56]} {[%emt
00:00:13]} Bxc3 {[%clk 00:25:46]} {[%emt 00:00:02]} 7. Bxc3 {[%clk 00:25:04]}
{[%emt 00:00:02]} Nf6 {[%clk 00:25:54]} {[%emt 00:00:02]} 8. e3 {[%clk
00:24:58]} {[%emt 00:00:16]} O-O {[%clk 00:25:38]} {[%emt 00:00:26]} 9. Bd3
{[%clk 00:24:24]} {[%emt 00:00:45]} Nc6 {[%clk 00:25:23]} {[%emt 00:00:24]} 10.
Rc1 {[%clk 00:24:13]} {[%emt 00:00:22]} Ne7 {[%clk 00:25:09]} {[%emt 00:00:23]}
11. O-O {[%clk 00:23:47]} {[%emt 00:00:37]} Ng6 {[%clk 00:24:53]} {[%emt
00:00:26]} 12. b4 {[%clk 00:22:40]} {[%emt 00:01:17]} Qe7 {[%clk 00:24:26]}
{[%emt 00:00:36]} 13. c5 {[%clk 00:20:48]} {[%emt 00:02:03]} Nd5 {[%clk
00:23:10]} {[%emt 00:01:25]} 14. Re1 {[%clk 00:19:38]} {[%emt 00:01:20]} c6
{[%clk 00:22:24]} {[%emt 00:00:56]} 15. e4 {[%clk 00:17:13]} {[%emt 00:02:36]}
Nxc3 {[%clk 00:21:55]} {[%emt 00:00:38]} 16. Rxc3 {[%clk 00:17:16]} {[%emt
00:00:06]} Nh4 {[%clk 00:16:37]} {[%emt 00:05:30]} 17. Nxh4 {[%clk 00:14:40]}
{[%emt 00:02:46]} Qxh4 {[%clk 00:16:40]} {[%emt 00:00:05]} 18. f3 {[%clk
00:14:11]} {[%emt 00:00:41]} Rae8 {[%clk 00:15:03]} {[%emt 00:01:43]} 19. a4
{[%clk 00:13:15]} {[%emt 00:01:10]} Rf6 {[%clk 00:14:18]} {[%emt 00:00:54]} 20.
g3 {[%clk 00:12:06]} {[%emt 00:01:19]} Qh5 {[%clk 00:13:51]} {[%emt 00:00:35]}
21. b5 {[%clk 00:11:45]} {[%emt 00:00:34]} f4 {[%clk 00:10:15]} {[%emt
00:03:46]} 22. g4 {[%clk 00:09:52]} {[%emt 00:02:02]} Qg5 {[%clk 00:09:03]}
{[%emt 00:01:21]} 23. Qd2 {[%clk 00:08:25]} {[%emt 00:01:38]} Rh6 {[%clk
00:07:46]} {[%emt 00:01:25]} 24. Ra1 {[%clk 00:07:49]} {[%emt 00:00:49]} Rf8
{[%clk 00:06:56]} {[%emt 00:01:00]} 25. a5 {[%clk 00:07:24]} {[%emt 00:00:35]}
bxc5 {[%clk 00:06:21]} {[%emt 00:00:45]} 26. Rxc5 {[%clk 00:06:36]} {[%emt
00:00:58]} Qe7 {[%clk 00:04:52]} {[%emt 00:01:36]} 27. b6 {[%clk 00:04:47]}
{[%emt 00:02:02]} a6 {[%clk 00:04:27]} {[%emt 00:00:34]} 28. Qe2 {[%clk
00:03:48]} {[%emt 00:01:09]} Qd6 {[%clk 00:03:21]} {[%emt 00:01:16]} 29. Ra4
{[%clk 00:03:14]} {[%emt 00:00:44]} Ra8 {[%clk 00:03:06]} {[%emt 00:00:25]} 30.
e5 {[%clk 00:02:30]} {[%emt 00:00:54]} Qe7 {[%clk 00:03:00]} {[%emt 00:00:15]}
31. Be4 {[%clk 00:01:55]} {[%emt 00:00:47]} Qg5 {[%clk 00:02:13]} {[%emt
00:00:56]} 32. Qb2 {[%clk 00:00:59]} {[%emt 00:01:07]} Rh4 {[%clk 00:01:56]}
{[%emt 00:00:25]} 33. Rc2 {[%clk 00:00:45]} {[%emt 00:00:26]} h5 {[%clk
00:01:53]} {[%emt 00:00:12]} 34. Rg2 {[%clk 00:00:20]} {[%emt 00:00:36]} hxg4
{[%clk 00:01:52]} {[%emt 00:00:11]} 35. Qa3 {[%clk 00:00:14]} {[%emt 00:00:16]}
Kf7 {[%clk 00:01:19]} {[%emt 00:00:43]} 36. Qd6 {[%clk 00:00:17]} {[%emt
00:00:07]} Qe7 {[%clk 00:01:14]} {[%emt 00:00:14]} 37. Qxe7+ {[%clk 00:00:25]}
{[%emt 00:00:02]} Kxe7 {[%clk 00:01:23]} {[%emt 00:00:02]} 38. Rxg4 {[%clk
00:00:29]} {[%emt 00:00:06]} Rxg4+ {[%clk 00:01:29]} {[%emt 00:00:04]} 39. fxg4
{[%clk 00:00:38]} Kf7 {[%clk 00:01:32]} {[%emt 00:00:07]} 40. Kf2 {[%clk
00:00:40]} {[%emt 00:00:07]} Rh8 {[%clk 00:01:39]} {[%emt 00:00:03]} 41. Kg1
{[%clk 00:00:43]} {[%emt 00:00:08]} Rh3 {[%clk 00:01:13]} {[%emt 00:00:32]} 42.
Kg2 {[%clk 00:00:33]} {[%emt 00:00:24]} Re3 {[%clk 00:01:13]} {[%emt 00:00:05]}
43. Bf3 {[%clk 00:00:30]} {[%emt 00:00:17]} g5 {[%clk 00:01:20]} {[%emt
00:00:04]} 44. Kf2 {[%clk 00:00:23]} {[%emt 00:00:17]} Ke7 {[%clk 00:01:17]}
{[%emt 00:00:13]} 45. Ra1 {[%clk 00:00:22]} {[%emt 00:00:11]} d6 {[%clk
00:01:21]} {[%emt 00:00:06]} 46. exd6+ {[%clk 00:00:20]} {[%emt 00:00:12]} Kxd6
{[%clk 00:01:29]} {[%emt 00:00:02]} 47. Rd1 {[%clk 00:00:12]} {[%emt 00:00:17]}
Ra3 {[%clk 00:01:25]} {[%emt 00:00:12]} 48. h4 {[%clk 00:00:12]} {[%emt
00:00:13]} gxh4 {[%clk 00:01:33]} {[%emt 00:00:02]} 49. Rh1 {[%clk 00:00:21]}
Rxa5 {[%clk 00:01:38]} {[%emt 00:00:05]} 50. Rxh4 {[%clk 00:00:29]} {[%emt
00:00:02]} Rg5 {[%clk 00:01:30]} {[%emt 00:00:15]} 51. Rh5 {[%clk 00:00:30]}
{[%emt 00:00:11]} Rg7 {[%clk 00:01:26]} {[%emt 00:00:13]} 52. g5 {[%clk
00:00:36]} {[%emt 00:00:06]} a5 {[%clk 00:01:31]} {[%emt 00:00:04]} 53. Be4
{[%clk 00:00:26]} {[%emt 00:00:21]} Bc8 {[%clk 00:01:16]} {[%emt 00:00:24]} 54.
g6 {[%clk 00:00:29]} {[%emt 00:00:07]} e5 {[%clk 00:01:24]} {[%emt 00:00:02]}
55. dxe5+ {[%clk 00:00:25]} {[%emt 00:00:14]} Ke6 {[%clk 00:01:07]} {[%emt
00:00:27]} 56. Rh7 {[%clk 00:00:27]} {[%emt 00:00:08]} Rg8 {[%clk 00:00:38]}
{[%emt 00:00:39]} 57. b7 {[%clk 00:00:19]} {[%emt 00:00:18]} Bxb7 {[%clk
00:00:45]} {[%emt 00:00:03]} 58. Rxb7 {[%clk 00:00:27]} {[%emt 00:00:02]} Kxe5
{[%clk 00:00:36]} {[%emt 00:00:20]} 59. Bc2 {[%clk 00:00:29]} {[%emt 00:00:08]}
Kf6 {[%clk 00:00:27]} {[%emt 00:00:19]} 60. Rb6 {[%clk 00:00:30]} {[%emt
00:00:09]} a4 {[%clk 00:00:27]} {[%emt 00:00:10]} 61. Rxc6+ {[%clk 00:00:36]}
{[%emt 00:00:03]} Kg7 {[%clk 00:00:29]} {[%emt 00:00:08]} 62. Rc7+ {[%clk
00:00:39]} {[%emt 00:00:08]} Kh6 {[%clk 00:00:35]} {[%emt 00:00:04]} 63. Rh7+
{[%clk 00:00:27]} {[%emt 00:00:21]} Kg5 {[%clk 00:00:35]} {[%emt 00:00:11]} 64.
Ra7 {[%clk 00:00:25]} {[%emt 00:00:12]} a3 {[%clk 00:00:28]} {[%emt 00:00:16]}
65. Rxa3 {[%clk 00:00:33]} {[%emt 00:00:03]} Kf6 {[%clk 00:00:26]} {[%emt
00:00:12]} 66. Kf3 {[%clk 00:00:36]} {[%emt 00:00:07]} Kg5 {[%clk 00:00:29]}
{[%emt 00:00:07]} 67. Ra5+ {[%clk 00:00:36]} {[%emt 00:00:09]} Kf6 {[%clk
00:00:32]} {[%emt 00:00:07]} 68. Kxf4 {[%clk 00:00:43]} {[%emt 00:00:03]} Rg7
{[%clk 00:00:21]} {[%emt 00:00:22]} 69. Ra6+ {[%clk 00:00:43]} {[%emt
00:00:10]} Ke7 {[%clk 00:00:26]} {[%emt 00:00:04]} 70. Ra7+ {[%clk 00:00:49]}
{[%emt 00:00:05]} Kf8 {[%clk 00:00:35]} {[%emt 00:00:01]} 71. Rxg7 {[%clk
00:00:54]} {[%emt 00:00:05]} Kxg7 {[%clk 00:00:43]} {[%emt 00:00:01]} 72. Kf5
{[%clk 00:01:00]} {[%emt 00:00:04]} Kf8 {[%clk 00:00:49]} {[%emt 00:00:04]} 73.
Kf6 {[%clk 00:01:05]} {[%emt 00:00:05]} Kg8 {[%clk 00:00:57]} {[%emt 00:00:02]}
74. Bb3+ {[%clk 00:01:08]} {[%emt 00:00:08]} Kf8 {[%clk 00:00:51]} {[%emt
00:00:16]} 75. g7+ {[%clk 00:01:15]} {[%emt 00:00:03]} Ke8 {[%clk 00:00:58]}
{[%emt 00:00:03]} 76. g8=Q+ {[%clk 00:01:22]} {[%emt 00:00:03]} Kd7 {[%clk
00:01:04]} {[%emt 00:00:03]} 77. Qe6+ {[%clk 00:01:29]} {[%emt 00:00:03]} Kc7
{[%clk 00:01:11]} {[%emt 00:00:04]} 78. Bd5 {[%clk 00:01:33]} {[%emt 00:00:06]}
Kd8 {[%clk 00:01:12]} {[%emt 00:00:09]} 79. Qe7+ {[%clk 00:01:39]} {[%emt
00:00:04]} Kc8 {[%clk 00:01:21]} {[%emt 00:00:01]} 80. Kf5 {[%clk 00:01:41]}
{[%emt 00:00:08]} Kb8 {[%clk 00:01:26]} {[%emt 00:00:04]} 81. Qb7# {[%clk
00:01:49]} {[%emt 00:00:02]} 1-0



[ePGN "0.1;DGT LiveChess/2.2.6"]

[Event "MČR družstev mladších žáků 2024"]
[Site "Harrachov, Czech Republic"]
[Date "2024.06.15"]
[Round "7.23"]
[White "Polacek Matous"]
[Black "Lang Christian"]
[Result "0-1"]
[TimeControl "25+10"]
[WhiteFideId "23760435"]
[BlackFideId "23771771"]
[WhiteElo "1152"]
[BlackElo "1242"]

1. e4 {[%clk 00:25:25]} {[%emt 00:00:04]} e5 {[%clk 00:25:29]} {[%emt
00:00:02]} 2. Nf3 {[%clk 00:25:32]} {[%emt 00:00:03]} Nc6 {[%clk 00:25:37]}
{[%emt 00:00:02]} 3. Bc4 {[%clk 00:25:38]} {[%emt 00:00:03]} Bc5 {[%clk
00:25:43]} {[%emt 00:00:04]} 4. Nc3 {[%clk 00:25:40]} {[%emt 00:00:09]} Nf6
{[%clk 00:25:38]} {[%emt 00:00:15]} 5. d3 {[%clk 00:25:42]} {[%emt 00:00:07]}
h6 {[%clk 00:25:46]} {[%emt 00:00:03]} 6. O-O {[%clk 00:25:45]} {[%emt
00:00:06]} d6 {[%clk 00:25:53]} {[%emt 00:00:04]} 7. h3 {[%clk 00:25:50]}
{[%emt 00:00:04]} O-O {[%clk 00:25:57]} {[%emt 00:00:06]} 8. Be3 {[%clk
00:25:46]} {[%emt 00:00:14]} Nd4 {[%clk 00:25:40]} {[%emt 00:00:27]} 9. Bxd4
{[%clk 00:25:20]} {[%emt 00:00:35]} Bxd4 {[%clk 00:25:25]} {[%emt 00:00:26]} 10.
Nxd4 {[%clk 00:25:19]} {[%emt 00:00:11]} exd4 {[%clk 00:25:34]} {[%emt
00:00:02]} 11. Ne2 {[%clk 00:24:56]} {[%emt 00:00:30]} c5 {[%clk 00:25:05]}
{[%emt 00:00:41]} 12. c3 {[%clk 00:24:35]} {[%emt 00:00:31]} dxc3 {[%clk
00:24:57]} {[%emt 00:00:19]} 13. Nxc3 {[%clk 00:24:38]} {[%emt 00:00:07]} Be6
{[%clk 00:24:41]} {[%emt 00:00:26]} 14. Bb3 {[%clk 00:24:15]} {[%emt 00:00:32]}
Qb6 {[%clk 00:24:25]} {[%emt 00:00:24]} 15. Bxe6 {[%clk 00:20:38]} {[%emt
00:03:49]} fxe6 {[%clk 00:24:33]} {[%emt 00:00:02]} 16. b3 {[%clk 00:20:09]}
{[%emt 00:00:39]} Rf7 {[%clk 00:19:26]} {[%emt 00:05:17]} 17. Rc1 {[%clk
00:18:47]} {[%emt 00:01:30]} Raf8 {[%clk 00:17:03]} {[%emt 00:02:36]} 18. Rc2
{[%clk 00:17:56]} {[%emt 00:01:00]} Nd7 {[%clk 00:15:23]} {[%emt 00:01:49]} 19.
Qe2 {[%clk 00:15:58]} {[%emt 00:02:07]} Ne5 {[%clk 00:14:21]} {[%emt 00:01:14]}
20. Qe3 {[%clk 00:13:41]} {[%emt 00:02:27]} Rf6 {[%clk 00:10:33]} {[%emt
00:03:57]} 21. f4 {[%clk 00:10:54]} {[%emt 00:02:55]} Nxd3 {[%clk 00:09:43]}
{[%emt 00:01:04]} 22. Na4 {[%clk 00:09:51]} {[%emt 00:01:12]} Qa6 {[%clk
00:06:47]} {[%emt 00:02:56]} 23. Rd2 {[%clk 00:08:28]} {[%emt 00:01:40]} Nxf4
{[%clk 00:06:40]} {[%emt 00:00:20]} 24. Rdf2 {[%clk 00:07:25]} {[%emt
00:01:11]} Qd3 {[%clk 00:03:24]} {[%emt 00:03:26]} 25. Qxd3 {[%clk 00:05:39]}
{[%emt 00:01:59]} Nxd3 {[%clk 00:03:30]} {[%emt 00:00:04]} 26. Rxf6 {[%clk
00:05:30]} {[%emt 00:00:17]} Rxf6 {[%clk 00:03:36]} {[%emt 00:00:06]} 27. Rd1
{[%clk 00:04:57]} {[%emt 00:00:40]} Nb4 {[%clk 00:02:47]} {[%emt 00:01:01]} 28.
Rxd6 {[%clk 00:04:42]} {[%emt 00:00:26]} Nxa2 {[%clk 00:02:45]} {[%emt
00:00:11]} 29. Nxc5 {[%clk 00:04:25]} {[%emt 00:00:27]} Nc1 {[%clk 00:02:11]}
{[%emt 00:00:45]} 30. Nxb7 {[%clk 00:03:55]} {[%emt 00:00:40]} Nxb3 {[%clk
00:02:12]} {[%emt 00:00:09]} 31. Ra6 {[%clk 00:03:22]} {[%emt 00:00:40]} Nd2
{[%clk 00:02:08]} {[%emt 00:00:17]} 32. Nd6 {[%clk 00:03:03]} {[%emt 00:00:27]}
Rf1+ {[%clk 00:01:57]} {[%emt 00:00:22]} 33. Kh2 {[%clk 00:03:06]} {[%emt
00:00:07]} Re1 {[%clk 00:02:01]} {[%emt 00:00:05]} 34. Rxa7 {[%clk 00:02:57]}
{[%emt 00:00:21]} Nxe4 {[%clk 00:02:07]} {[%emt 00:00:04]} 35. Ra8+ {[%clk
00:02:53]} {[%emt 00:00:12]} Kh7 {[%clk 00:02:13]} {[%emt 00:00:04]} 36. Nxe4
{[%clk 00:02:59]} {[%emt 00:00:06]} Rxe4 {[%clk 00:02:21]} {[%emt 00:00:01]} 37.
Kg3 {[%clk 00:03:04]} {[%emt 00:00:05]} Kg6 {[%clk 00:01:11]} {[%emt 00:01:20]}
38. Rf8 {[%clk 00:02:41]} {[%emt 00:00:33]} Re5 {[%clk 00:01:10]} {[%emt
00:00:12]} 39. Kg4 {[%clk 00:02:08]} {[%emt 00:00:43]} Rg5+ {[%clk 00:01:03]}
{[%emt 00:00:17]} 40. Kf3 {[%clk 00:02:10]} {[%emt 00:00:08]} Rf5+ {[%clk
00:01:00]} {[%emt 00:00:14]} 41. Rxf5 {[%clk 00:02:16]} {[%emt 00:00:03]} Kxf5
{[%clk 00:00:45]} {[%emt 00:00:21]} 42. h4 {[%clk 00:01:51]} {[%emt 00:00:39]}
g5 {[%clk 00:00:30]} {[%emt 00:00:25]} 43. g4+ {[%clk 00:01:38]} {[%emt
00:00:23]} Ke5 {[%clk 00:00:22]} {[%emt 00:00:18]} 44. hxg5 {[%clk 00:01:20]}
{[%emt 00:00:28]} hxg5 {[%clk 00:00:30]} {[%emt 00:00:02]} 45. Ke3 {[%clk
00:01:21]} {[%emt 00:00:09]} Kd5 {[%clk 00:00:36]} {[%emt 00:00:04]} 46. Kd3
{[%clk 00:01:11]} {[%emt 00:00:20]} e5 {[%clk 00:00:35]} {[%emt 00:00:10]} 47.
Ke3 {[%clk 00:01:17]} {[%emt 00:00:04]} e4 {[%clk 00:00:40]} {[%emt 00:00:06]}
48. Ke2 {[%clk 00:01:18]} {[%emt 00:00:09]} Kd4 {[%clk 00:00:41]} {[%emt
00:00:09]} 49. Kd2 {[%clk 00:01:25]} {[%emt 00:00:03]} e3+ {[%clk 00:00:47]}
{[%emt 00:00:04]} 50. Ke2 {[%clk 00:01:32]} {[%emt 00:00:02]} Ke4 {[%clk
00:00:56]} {[%emt 00:00:02]} 51. Ke1 {[%clk 00:01:39]} {[%emt 00:00:02]} Kf3
{[%clk 00:00:59]} {[%emt 00:00:07]} 52. Kf1 {[%clk 00:01:46]} {[%emt 00:00:03]}
Kxg4 {[%clk 00:01:05]} {[%emt 00:00:04]} 53. Ke2 {[%clk 00:01:53]} {[%emt
00:00:03]} Kf4 {[%clk 00:01:14]} {[%emt 00:00:02]} 54. Ke1 {[%clk 00:01:57]}
{[%emt 00:00:06]} g4 {[%clk 00:01:23]} 55. Kf1 {[%clk 00:02:04]} {[%emt
00:00:03]} Kf3 {[%clk 00:01:26]} {[%emt 00:00:07]} 56. Kg1 {[%clk 00:02:06]}
{[%emt 00:00:07]} e2 {[%clk 00:01:19]} {[%emt 00:00:17]} 57. Kh2 {[%clk
00:02:14]} {[%emt 00:00:02]} g3+ {[%clk 00:01:26]} {[%emt 00:00:04]} 58. Kh3
{[%clk 00:02:19]} {[%emt 00:00:05]} e1=Q {[%clk 00:01:30]} {[%emt 00:00:06]} 59.
Kh4 {[%clk 00:02:25]} {[%emt 00:00:04]} g2+ {[%clk 00:01:29]} {[%emt 00:00:11]}
60. Kh5 {[%clk 00:02:32]} {[%emt 00:00:03]} Qg3 {[%clk 00:01:35]} {[%emt
00:00:05]} 61. Kh6 {[%clk 00:02:36]} {[%emt 00:00:05]} g1=R {[%clk 00:01:41]}
{[%emt 00:00:04]} 62. Kh5 {[%clk 00:02:43]} {[%emt 00:00:03]} Qh2# {[%clk
00:01:36]} {[%emt 00:00:04]} 0-1



[ePGN "0.1;DGT LiveChess/2.2.6"]